Cogmind - Beta 10.2 @@@ ROGUE MODE // 2021.06.01 @ 21:54:40 Player: Kromatom Result: Destroyed by G-47 Trooper with Particle Gun Performance ------------- Evolutions (2) 1000 Regions Visited (3) 600 Robots Destroyed (19) 95 Value Destroyed (427) 427 Prototype IDs (0) 0 Alien Tech Used (0) 0 Bonus (0) 0 TOTAL SCORE: 2122 Bonus ------- None Cogmind --------- Core Integrity 0/550 Matter 99/300 Energy 100/100 System Corruption 0% Temperature Cool (9) Movement Core (550) Ox10 Location -8/Materials Parts ------- > --- POWER (2) -------- (None) > --- PROPULSION (3) --- (None) > --- UTILITY (4) ------ High-capacity Storage Unit > --- WEAPON (2) ------- (None) > --- INVENTORY (12) --- Light Treads Wheel Improved Terrain Scanner Armor Integrity Analyzer Improved Propulsion Shielding Medium Laser Beam Rifle Spread Laser Spread Laser High-powered Shotgun Shock Bomb Launcher Peak State ------------ > --- POWER ------------ Ion Engine Light Ion Engine > --- PROPULSION ------- Aluminum Leg Aluminum Leg Aluminum Leg > --- UTILITY ---------- High-capacity Storage Unit Advanced Signal Interpreter Heavy Armor Plating > --- WEAPON ----------- High-powered Shotgun High-powered Shotgun > --- INVENTORY -------- Heat Sink Improved Terrain Scanner Armor Integrity Analyzer Improved Propulsion Shielding Medium Laser Spread Laser Spread Laser Spread Laser Spread Laser Shock Bomb Launcher [Rating: 23] Favorites ----------- Power Ion Engine Engine Ion Engine Propulsion Aluminum Leg Leg Aluminum Leg Utility Small Storage Unit Device Sensor Array Storage Small Storage Unit Processor Advanced Signal Interpreter Protection Improved Propulsion Shielding Weapon Shotgun Energy Gun Spread Laser Ballistic Gun Shotgun Launcher Mini Grenade Launcher Build | -11 -10 -9 -8 ------- Run | Scr Mat Mat Mat Slots Evolved 4 | . . 2 2 Power 1 | . . . 1 Propulsion 1 | . . 1 . Utility 2 | . . 1 1 Weapon . | . . . . Parts Attached 31 | 2 12 9 8 Power 2 | 1 . . 1 Engine 2 | 1 . . 1 Core . | . . . . Reactor . | . . . . Propulsion 4 | . 2 1 1 Treads . | . . . . Leg 4 | . 2 1 1 Wheel . | . . . . Hover . | . . . . Flight . | . . . . Utility 9 | 1 2 4 2 Device 4 | . 2 1 1 Storage 2 | 1 . 1 . Processor 1 | . . 1 . Hackware . | . . . . Protection 2 | . . 1 1 Artifact . | . . . . Weapon 16 | . 8 4 4 Energy Gun 9 | . 5 3 1 Energy Cannon . | . . . . Ballistic Gun 5 | . 3 . 2 Ballistic Cannon . | . . . . Launcher 2 | . . 1 1 Special Weapon . | . . . . Impact Weapon . | . . . . Slashing Weapon . | . . . . Piercing Weapon . | . . . . Special Melee Weapon . | . . . . Unidentified Prototypes . | . . . . Parts Lost 10 | . 1 . 9 Power 2 | . . . 2 Propulsion 3 | . . . 3 Utility 3 | . 1 . 2 Weapon 2 | . . . 2 Highest Loss Streak 9 | . 1 . 9 Average Slot Usage (%) 88 | . 85 95 84 Engine 13 | . 14 11 16 Leg 25 | . 19 30 25 Device 6 | . 10 3 5 Storage 11 | . 14 11 9 Processor 3 | . . 8 3 Protection 5 | . . 8 8 Energy Gun 10 | . 20 7 4 Ballistic Gun 10 | . 5 14 11 Naked Turns . | . . . . Heaviest Build 62 | 9 16 48 62 Greatest Support 30 | 3 20 30 30 Greatest Overweight (x) 12 | 2 4 1 12 Average Overweight (x) . | 1 . . 2 Largest Inventory Capacity 12 | 6 6 12 12 Average Capacity 8 | 5 6 7 12 Most Carried 12 | 6 6 12 12 Average Carried 7 | 4 5 6 10 Final Capacity 12 | 6 6 12 12 Final Carried 12 | 6 5 12 11 Class Distribution -------------------- 100% | Mutant Dominant Class ---------------- Mutant | -10/Materials Mutant | -9/Materials Mutant | -8/Materials Resources | -11 -10 -9 -8 ----------- Run | Scr Mat Mat Mat Matter Collected 474 | 210 73 74 117 Remotely . | . . . . Salvage Created 500 | . 73 124 303 Parts 37 | . 5 5 27 Haulers Intercepted 1 | . . . 1 Recyclers Shooed 1 | . . . 1 Parts Field Recycled . | . . . . Retrieved Matter . | . . . . Parts Self-Destructed . | . . . . Prevented . | . . . . Kills | -11 -10 -9 -8 ------- Run | Scr Mat Mat Mat Combat Hostiles Destroyed 11 | . 2 3 6 Guns 7 | . 2 1 4 AOE 4 | . . 2 2 Classes Destroyed 8 | . 2 . 6 Worker 2 | . . . 2 Builder 1 | . . . 1 Hauler 1 | . . . 1 Recycler 2 | . . . 2 Watcher 2 | . 1 . 1 Swarmer 3 | . . . 3 Grunt 7 | . 2 3 2 Sentry 1 | . . . 1 Best Kill Streak 11 | . 2 2 11 Combat Bots Only 5 | . 2 2 5 Max Kills in Single Turn 5 | . 1 1 5 Gunslinging . | . . . . Exploded 1 | . . 1 1 Melee . | . . . . Uniques/NPCs Destroyed . | . . . . Combat | -11 -10 -9 -8 -------- Run | Scr Mat Mat Mat Damage Taken 1855 | . 241 144 1470 Core 652 | . 60 34 558 Absorbed by Shields . | . . . . Core Remaining (%) 89 | 100 76 91 . Volleys Fired 35 | . 9 13 13 Largest 2 | . 2 2 2 Hottest 130 | . 130 130 55 Shots Fired 62 | . 17 23 22 Gun 52 | . 17 18 17 Cannon . | . . . . Launcher 10 | . . 5 5 Special . | . . . . Kinetic 35 | . 4 14 17 Thermal 17 | . 13 4 . Explosive 5 | . . . 5 Electromagnetic 5 | . . 5 . Robot Hit Streak 7 | . 7 4 6 Robot Miss Streak 8 | . 8 4 7 Penetration Max . | . . . . Secondary Targets . | . . . . Shots Hit Robots 38 | . 13 15 10 Core Hits 37 | . 11 5 21 Critical Hits . | . . . . Critical Kills . | . . . . Critical Parts Destroyed . | . . . . Melee Attacks . | . . . . Impact . | . . . . Slashing . | . . . . Piercing . | . . . . Sneak Attacks . | . . . . Combat Hostiles . | . . . . Follow-up Attacks . | . . . . Damage Inflicted 1306 | . 165 224 917 Guns 452 | . 165 85 202 Cannons . | . . . . Explosions 854 | . . 139 715 Melee . | . . . . Ramming . | . . . . Kinetic 304 | . 41 61 202 Thermal 148 | . 124 24 . Explosive 715 | . . . 715 Electromagnetic 139 | . . 139 . Impact . | . . . . Slashing . | . . . . Piercing . | . . . . Highest Corruption . | . . . . Average Corruption . | . . . . Corruption Purged . | . . . . Overload Shots . | . . . . Overflow Damage 19 | . . . 19 Projectiles . | . . . . Explosions 19 | . . . 19 Melee . | . . . . Knockbacks . | . . . . Impact . | . . . . Kinetic . | . . . . Secondary . | . . . . Self-Inflicted Damage 89 | . . . 89 Shots 2 | . . . 2 Rammed . | . . . . Targets Rammed . | . . . . Kicked . | . . . . Crushed . | . . . . Highest Temperature 443 | . 443 60 33 Average Temperature 137 | . 225 24 11 Received Heat Transfer 876 | . 135 48 693 Effects 3 | . 3 . . Shutdowns 1 | . 1 . . Interference 1 | . 1 . . Damage (minor) 1 | . 1 . . Siege Activations . | . . . . Robots Corrupted . | . . . . Combat Hostiles . | . . . . Parts Fried . | . . . . Impact Corruptions . | . . . . Robots Melted . | . . . . Combat Hostiles . | . . . . Parts Melted . | . . . . Heat Transferred 207 | . 177 30 . Parts Sabotaged . | . . . . Parts Stolen . | . . . . Parts Stripped . | . . . . Power Chain Reactions . | . . . . Missiles Intercepted . | . . . . Alert | -11 -10 -9 -8 ------- Run | Scr Mat Mat Mat Peak Influence 289 | . 50 145 289 Initial 61 | . . 20 61 Average 64 | . 15 79 119 Maximum Alert Level 1 | . . . 1 Low Security (%) 96 | 100 100 100 85 Level 1 3 | . . . 14 Level 2 . | . . . . Level 3 . | . . . . Level 4 . | . . . . Level 5 . | . . . . High Security . | . . . . Max Security . | . . . . Squads Dispatched 4 | . . 2 2 Investigation 1 | . . 1 . Extermination . | . . . . Reinforcement 2 | . . 1 1 Assault . | . . . . Garrison 1 | . . . 1 Intercept . | . . . . Construction Impeded 1 | . . . 1 Haulers Reinforced . | . . . . Stealth | -11 -10 -9 -8 --------- Run | Scr Mat Mat Mat Distress Signals 3 | . . . 3 Communications Jammed . | . . . . Distress Signals . | . . . . Times Spotted 30 | . 3 10 17 Peak Tracking Total 8 | . 2 3 8 Tactical Retreats 1 | . . . 1 Traps | -11 -10 -9 -8 ------- Run | Scr Mat Mat Mat Traps Triggered 1 | . . 1 . Indirectly . | . . . . Trap Hack Attempts . | . . . . Triggered . | . . . . Disarmed . | . . . . Reprogrammed . | . . . . Reused . | . . . . Traps Extracted . | . . . . Installed . | . . . . Triggered . | . . . . Machines | -11 -10 -9 -8 ---------- Run | Scr Mat Mat Mat Machines Disabled 1 | . . . 1 Max in Single Turn 1 | . . . 1 Machines Sabotaged . | . . . . Garrisons Compromised . | . . . . Overloaded Fab Kills . | . . . . Fab Network Shutdowns . | . . . . Hacking | -11 -10 -9 -8 --------- Run | Scr Mat Mat Mat Machines Accessed 3 | . 2 . 1 Terminals 2 | . 1 . 1 Fabricators . | . . . . Repair Stations . | . . . . Recycling Units 1 | . 1 . . Scanalyzers . | . . . . Garrison Access . | . . . . Total Hacks 5 | . 4 . 1 Successful 4 | . 3 . 1 Failed 1 | . 1 . . Catastrophic . | . . . . Database Lockouts . | . . . . Manual . | . . . . Terminals 3 | . 2 . 1 Fabricators . | . . . . Repair Stations . | . . . . Recycling Units 2 | . 2 . . Scanalyzers . | . . . . Garrison Access . | . . . . Terminal Hacks 2 | . 1 . 1 Record 2 | . 1 . 1 Fabricator Hacks . | . . . . Repair Station Hacks . | . . . . Recycling Unit Hacks 2 | . 2 . . Process 1 | . 1 . . Report Inventory 1 | . 1 . . Scanalyzer . | . . . . Garrison Access Hacks . | . . . . Unauthorized Hacks . | . . . . Terminals . | . . . . Fabricators . | . . . . Repair Stations . | . . . . Recycling Units . | . . . . Scanalyzers . | . . . . Garrison Access . | . . . . Data Cores Recovered . | . . . . Used . | . . . . Hacking Detections 1 | . . . 1 Full Trace Events . | . . . . Feedback Events . | . . . . Feedback Blocked . | . . . . Robot Schematics Acquired . | . . . . Robots Built . | . . . . Matter . | . . . . Time . | . . . . Total Robot Build Rating . | . . . . Part Schematics Acquired . | . . . . Parts Built . | . . . . Matter . | . . . . Time . | . . . . Total Part Build Rating . | . . . . Parts Repaired . | . . . . Time . | . . . . Parts Recycled . | . . . . Recycled Matter 15 | . 15 . . Retrieved Matter . | . . . . Retrieved Components . | . . . . Parts Scanalyzed . | . . . . Part Schematics Acquired . | . . . . Parts Damaged . | . . . . Bothacking | -11 -10 -9 -8 ------------ Run | Scr Mat Mat Mat Used RIF Installer . | . . . . Robots Hacked . | . . . . Non-combat . | . . . . Combat . | . . . . Robot Hacks Applied . | . . . . Relay Couplers Released . | . . . . Robots Rewired . | . . . . Allies Hacked . | . . . . Hacks Repelled . | . . . . Allies | -11 -10 -9 -8 -------- Run | Scr Mat Mat Mat Total Allies . | . . . . Largest Group . | . . . . Highest-Rated Group . | . . . . Highest-Rated Ally . | . . . . Total Orders . | . . . . Ally Attacks . | . . . . Total Damage . | . . . . Kills . | . . . . Allies Corrupted . | . . . . Allies Melted . | . . . . Intel | -11 -10 -9 -8 ------- Run | Scr Mat Mat Mat Robot Analysis Total . | . . . . Derelict Logs Recovered . | . . . . Drone Launches . | . . . . Drone Recoveries . | . . . . Exploration | -11 -10 -9 -8 ------------- Run | Scr Mat Mat Mat Turns Passed 1075 | 67 348 363 297 Spaces Moved 546 | 40 196 191 119 Core 85 | 40 42 . 3 Treads . | . . . . Legs 461 | . 154 191 116 Wheels . | . . . . Hover . | . . . . Flight . | . . . . Fastest Speed 50 | 50 120 120 150 Average Speed 146 | 145 142 128 184 Slowest Speed 650 | 150 250 150 650 Overloaded Moves . | . . . . Propulsion Burnouts . | . . . . Robots Hopped . | . . . . Cave-ins Triggered . | . . . . Exploration Rate (%) 15 | 5 21 23 11 Regions Visited 3 Branch Regions . Pre-discovered Areas . | . . . . Known Exits Taken . | . . . . Unknown Exits Taken 3 | 1 1 1 . Scrap Searched . | . . . . Spaces Dug . | . . . . Terrain Destroyed 25 | . . . 25 Melee . | . . . . Projectile . | . . . . AOE 25 | . . . 25 Terrain Rammed . | . . . . Walls Destroyed . | . . . . Machines Disabled . | . . . . Actions | -11 -10 -9 -8 --------- Run | Scr Mat Mat Mat Total 764 | 49 251 284 180 Wait 97 | . 15 59 23 Move 543 | 39 195 190 119 Hop . | . . . . Pick Up 38 | 8 12 10 8 Fast Attach 2 | . 1 1 . Attach 17 | 2 10 2 3 Detach 1 | . . . 1 Swap 12 | . 1 6 5 Drop 19 | . 8 3 8 Fire 35 | . 9 13 13 Melee . | . . . . Ram . | . . . . Kick . | . . . . Crush . | . . . . Escape Stasis . | . . . . Rewire . | . . . . Trap . | . . . . Miscellaneous . | . . . . Route ------- -11/Scrapyard -10/Materials -9/Materials -8/Materials History --------- Turn | Location | Event 16 | -11/Scrapyard | Discovered new exit (range 15) 68 | -11/Scrapyard | Entered Materials 307 | -10/Materials | Build established: Mutant 405 | -10/Materials | Discovered new exit (range 10) 416 | -10/Materials | Entered another Materials area 416 | -9/Materials | Evolved 2 slots: Propulsion x1, Utility x1 730 | -9/Materials | Discovered new exit (range 16) 779 | -9/Materials | Entered another Materials area 779 | -8/Materials | Evolved 2 slots: Power x1, Utility x1 1034 | -8/Materials | Garrison activated, responded to threat 1067 | -8/Materials | Core integrity fell below 50% 1071 | -8/Materials | Core integrity fell below 20% 1076 | -8/Materials | Destroyed by G-47 Trooper with Particle Gun Last Messages --------------- Destroyed Aluminum Leg. Lgt. Ion Engine destroyed. Destroyed Lgt. Ion Engine. R-06 Scavenger destroyed. K-01 Serf destroyed. Hpw. Shotgun destroyed. K-01 Serf collects debris. Heat Sink destroyed. Acquired 53 matter. Ion Engine destroyed. U-05 Engineer builds a Wall. Mni. Grenade Launcher destroyed. U-05 Engineer lays Concrete. R-06 Scavenger collects Sml. Storage Unit. U-05 Engineer lays Concrete. K-01 Serf collects debris. U-05 Engineer builds a Wall. R-06 Scavenger collects Flight Unit. R-06 Scavenger collects Imp. Heat Sink. K-01 Serf collects debris. Map ----- +----------------------------------------------------+ | ?????????????????????????????????????????????????? | | ?????????????????????????????????????????????????? | | ?????????????????????????????????????????????????? | | ?????????????????????????????????????????????????? | | ?????????????????????????????????????????????????? | | ?????????????????????????????????????????????????? | | ?????????????????????????????????????????????????? | | ?????????????????????????????????????????????????? | | ?????????????????????????????????????????????????? | | ?????????????????????????????????????????????????? | | ?????????????????????????????????????????????????? | | ?????????????????????????????????????????????????? | | ?????????????????????????????????????????????????? | | ?????????????????????????????????????????????????? | | ?????????????????????????????????????????????????? | | ?????????????????????????????????????????????????? | | ????????????????????????????????########????????## | | ?????????????????????????######## #????????# | | ?????????????????????????# + #????????#! | | ?????????????????????????# ###### #????????#[ | | ????## ?? ???????????????# #????# #????????#[ | | ???? """??????????????# #????# ! #????????# | | ???? """???????????#### #????# #????????# | | ???# """ ??######?## ## #########+############# | | ???# #|g ### [ | | ???# # g !@% | | ?????? """ k gY [ a | | ?????? """ r =g #####+### ############## | | ???# % """ #[[ ## ## #????????????? | | ???+ ugg [ ## ""## #????????????? | | ???# [[! """ ## T"## #????????????? | | ???# """ u# =% """ ## ""## #????????????? | | ???# """ # " """ ## ## #????????????? | | ??????? """ # ######### ## ?????????????? | | ??????? ###????????# [ [ # ?????????????? | | ?????? ???????????####### = ?????????????? | | ?????? ??????????????????# ?????????????? | | ????? ??????????????????# * ?????????????? | | ?????+##### ???????????????????# ?????????????? | | ??????????# ?????????????????????#/#?????????????? | | ??????????#??????????????????????????????????????? | | ?????????????????????????????????????????????????? | | ?????????????????????????????????????????????????? | | ?????????????????????????????????????????????????? | | ?????????????????????????????????????????????????? | | ?????????????????????????????????????????????????? | | ?????????????????????????????????????????????????? | | ?????????????????????????????????????????????????? | | ?????????????????????????????????????????????????? | | ?????????????????????????????????????????????????? | +----------------------------------------------------+ Best States ------------- Heat Dissipation 41 Energy Generation 15 Energy Capacity 275 Matter Stores 290 Matter Capacity 300 Sight Range 16 Robot Scan Range 10 Terrain Scan Range 16 Terrain Scan Density 10 Armor Coverage 600 Propulsion Shielding 66 Evasion (%) 40 Item Schematics ----------------- None Robot Schematics ------------------ None Fabricated ------------ Nothing Alien Tech Used ----------------- None Achievements -------------- Loot Pinata Oops Storm Trooper Troublemaker Challenges ------------ None Game ------ Seed DamperSalvageKinecellerator Manual? 0 Play Time 00:38:32 Cumulative 3.3 hours Start 2021.06.01 @ 21:14:02 End 2021.06.01 @ 21:54:40 Sessions 1 Manual Loads 0 Difficulty Rogue Special Mode None Game No. 5 Rogue 4 Adventurer 1 Explorer 0 Win Type - Total 0 Types 0/0/0/0/0/0/0/0/0 Lore% 3 Gallery% 5 Achievement% 3 Wizard Run 0 Options --------- ASCII 0 Keyboard 0 Movement Mouse Keybinds 0 Fullscreen 2 Font 24/Smallcaps Map View 76x50 Tactical HUD 0 Map Filters NONE Filters NONE Steam 1 RUN: 88aa8fa7-5195-4a9d-8e57-61e6c92b9697